fUST/lending_fUST_20250917
["ID","MTS","AMOUNT","RATE_DAILY","PERIOD"]
[385864105,1758069040174,-160.0,0.00021917,2]
[385864107,1758069040183,-1570.36114296,0.00021917,2]
[385864109,1758069040192,-480.0,0.00021917,2]
[385864111,1758069040201,-480.0,0.00021917,2]
[385864113,1758069040210,-480.0,0.00021917,2]
[385864115,1758069040219,-328.68295378,0.00021917,2]
[385864117,1758069040229,-2510.65151508,0.00021917,2]
[385864119,1758069040239,-480.0,0.00021917,2]
[385864121,1758069040248,-480.0,0.00021917,2]
[385864123,1758069040257,-719.38,0.00021917,2]
[385864125,1758069040267,-480.0,0.00021917,2]
[385864127,1758069040277,-720.48,0.00021917,2]
[385864129,1758069040287,-480.0,0.00021917,2]
[385864131,1758069040296,-480.0,0.00021917,2]
[385864133,1758069040306,-610.31,0.00021917,2]
[385864135,1758069040316,-480.0,0.00021917,2]
[385864137,1758069040325,-1313.41708329,0.00021917,2]
[385864139,1758069040334,-700.06,0.00021917,2]
[385864141,1758069040344,-209.37,0.00021917,2]
[385864143,1758069040353,-409.44351263,0.00021917,2]
[385864145,1758069040362,-480.0,0.00021917,2]
[385864147,1758069040371,-480.0,0.00021917,2]
[385864149,1758069040380,-909.86,0.00021917,2]
[385864151,1758069040389,-480.0,0.00021917,2]
[385864154,1758069040399,-480.0,0.00021917,2]
[385864156,1758069040408,-480.0,0.00021917,2]
[385864158,1758069040418,-480.0,0.00021917,2]
[385864160,1758069040427,-480.0,0.00021917,2]
[385864162,1758069040435,-480.0,0.00021917,2]
[385864164,1758069040445,-820.83,0.00021917,2]
[385864166,1758069040454,-523.42,0.00021917,2]
[385864168,1758069040463,-480.0,0.00021917,2]
[385864170,1758069040472,-982.72,0.00021917,2]
[385864172,1758069040482,-480.0,0.00021917,2]
[385864174,1758069040492,-522.33,0.00021917,2]
[385864176,1758069040501,-1927.59,0.00021917,2]
[385864178,1758069040512,-1522.66,0.00021917,2]
[385864180,1758069040521,-480.0,0.00021917,2]
[385864182,1758069040530,-480.0,0.00021917,2]
[385864184,1758069040540,-193.93475384,0.00021917,2]
[385864186,1758069040549,-480.0,0.00021917,2]
[385864188,1758069040558,-480.0,0.00021917,2]
[385864190,1758069040567,-8667.84,0.00021917,2]
[385864192,1758069040576,-950.33,0.00021917,2]
[385864194,1758069040584,-4346.67,0.00021917,2]
[385864196,1758069040594,-612.15,0.00021917,2]
[385864197,1758069040605,-926.64,0.00021917,2]
[385864199,1758069040614,-480.0,0.00021917,2]
[385864201,1758069040623,-1454.46,0.00021917,2]
[385864203,1758069040632,-480.0,0.00021917,2]
[385864205,1758069040641,-480.0,0.00021917,2]
[385864207,1758069040651,-611.82,0.00021917,2]
[385864209,1758069040660,-480.0,0.00021917,2]
[385864211,1758069040674,-480.0,0.00021917,2]
[385864213,1758069040683,-480.0,0.00021917,2]
[385864215,1758069040692,-339.4550938,0.00021917,2]
[385864217,1758069040701,-210.1413463,0.00021917,2]
[385864447,1758069043008,-500.0,0.00021917,2]
[385864449,1758069043018,-531.5486537,0.00021917,2]
[385864451,1758069043027,-765.81,0.00021917,2]
[385864453,1758069043037,-191.3413463,0.00021917,2]
[385864770,1758069046081,-1027.2786537,0.00021917,2]
[385864772,1758069046090,-480.0,0.00021917,2]
[385864774,1758069046100,-661.47,0.00021917,2]
[385864776,1758069046110,-1433.43,0.00021917,2]
[385864778,1758069046119,-1636.13627648,0.00021917,2]
[385864780,1758069046128,-480.0,0.00021917,2]
[385864782,1758069046137,-3200.6,0.00021917,2]
[385864784,1758069046148,-3082.28,0.00021917,2]
[385864786,1758069046157,-885.0,0.00021917,2]
[385864788,1758069046166,-832.06,0.00021917,2]
[385864790,1758069046175,-480.0,0.00021917,2]
[385864792,1758069046184,-480.0,0.00021917,2]
[385864794,1758069046193,-480.0,0.00021917,2]
[385864796,1758069046202,-1849.91,0.00021917,2]
[385864798,1758069046211,-819.28,0.00021917,2]
[385864800,1758069046220,-480.0,0.00021917,2]
[385864802,1758069046229,-823.82,0.00021917,2]
[385864804,1758069046238,-480.0,0.00021917,2]
[385864806,1758069046248,-669.94,0.00021917,2]
[385864808,1758069046256,-480.0,0.00021917,2]
[385864810,1758069046266,-480.06,0.00021917,2]
[385864812,1758069046275,-1354.71,0.00021917,2]
[385864814,1758069046284,-480.0,0.00021917,2]
[385864816,1758069046294,-555.73,0.00021917,2]
[385864818,1758069046303,-1124.24,0.00021917,2]
[385864820,1758069046313,-480.0,0.00021917,2]
[385864822,1758069046323,-480.0,0.00021917,2]
[385864824,1758069046332,-859.53,0.00021917,2]
[385864825,1758069046341,-480.0,0.00021917,2]
[385864827,1758069046350,-664.16,0.00021917,2]
[385864829,1758069046359,-547.49,0.00021917,2]
[385864831,1758069046369,-2208.88,0.00021917,2]
[385864833,1758069046378,-1824.19,0.00021917,2]
[385864835,1758069046388,-480.0,0.00021917,2]
[385864837,1758069046397,-518.92,0.00021917,2]
[385864839,1758069046406,-480.0,0.00021917,2]
[385864841,1758069046416,-567.16,0.00021917,2]
[385864843,1758069046425,-793.97,0.00021917,2]
[385864845,1758069046434,-480.0,0.00021917,2]
[385864847,1758069046443,-1025.73,0.00021917,2]
[385864849,1758069046453,-1458.61,0.00021917,2]
[385864851,1758069046464,-480.0,0.00021917,2]
[385864853,1758069046473,-2073.44,0.00021917,2]
[385864855,1758069046482,-3586.0,0.00021917,2]
[385864857,1758069046491,-609.18,0.00021917,2]
[385864859,1758069046500,-480.1,0.00021917,2]
[385864861,1758069046510,-853.17,0.00021917,2]
[385864863,1758069046519,-1833.06,0.00021917,2]
[385864865,1758069046529,-17854.28,0.00021917,2]
[385864867,1758069046538,-660.89,0.00021917,2]
[385864869,1758069046548,-480.0,0.00021917,2]
[385864871,1758069046557,-480.0,0.00021917,2]
[385864873,1758069046567,-718.86,0.00021917,2]
[385864875,1758069046576,-4307.72,0.00021917,2]
[385864877,1758069046585,-918.08,0.00021917,2]
[385864879,1758069046594,-530.74,0.00021917,2]
[385864881,1758069046603,-677.63,0.00021917,2]
[385864883,1758069046613,-480.0,0.00021917,2]
[385864885,1758069046622,-1847.28,0.00021917,2]
[385864887,1758069046632,-480.0,0.00021917,2]
[385864889,1758069046642,-310.52,0.00022,2]
[385864902,1758069046759,-250.3,0.00022046,2]
[385864904,1758069046769,-157.76,0.00022073,2]
[385864906,1758069046778,-1812.75646884,0.00022091,2]
[385864908,1758069046787,-198.799,0.00022093,2]
[385864910,1758069046797,-500.0,0.00022173,2]
[385864912,1758069046806,-480.0,0.00022191,3]
[385864914,1758069046816,-480.0,0.00022191,3]
[385864916,1758069046825,-151.0,0.00022191,2]
[385864918,1758069046834,-719.38,0.00022191,3]
[385864920,1758069046843,-480.0,0.00022191,3]
[385864922,1758069046852,-720.48,0.00022191,3]
[385864924,1758069046861,-480.0,0.00022191,3]
[385864926,1758069046870,-480.0,0.00022191,3]
[385864928,1758069046879,-610.31,0.00022191,3]
[385864930,1758069046888,-480.0,0.00022191,3]
[385864932,1758069046897,-700.06,0.00022191,3]
[385864934,1758069046906,-480.0,0.00022191,3]
[385864936,1758069046915,-480.0,0.00022191,3]
[385864938,1758069046925,-909.86,0.00022191,3]
[385864940,1758069046934,-480.0,0.00022191,3]
[385864942,1758069046943,-480.0,0.00022191,3]
[385864944,1758069046953,-480.0,0.00022191,3]
[385864946,1758069046963,-480.0,0.00022191,3]
[385864948,1758069046972,-480.0,0.00022191,3]
[385864950,1758069046981,-480.0,0.00022191,3]
[385864952,1758069046990,-820.83,0.00022191,3]
[385864954,1758069046999,-523.42,0.00022191,3]
[385864956,1758069047009,-480.0,0.00022191,3]
[385864958,1758069047020,-982.72,0.00022191,3]
[385864960,1758069047029,-480.0,0.00022191,3]
[385864962,1758069047039,-522.33,0.00022191,3]
[385864964,1758069047048,-1522.66,0.00022191,3]
[385864966,1758069047058,-480.0,0.00022191,3]
[385864968,1758069047067,-480.0,0.00022191,3]
[385864970,1758069047077,-480.0,0.00022191,3]
[385864972,1758069047087,-480.0,0.00022191,3]
[385864974,1758069047095,-8667.84,0.00022191,3]
[385864976,1758069047105,-950.33,0.00022191,3]
[385864978,1758069047114,-4346.67,0.00022191,3]
[385864980,1758069047124,-612.15,0.00022191,3]
[385864982,1758069047133,-926.64,0.00022191,3]
[385864984,1758069047143,-615.48,0.00022191,3]
[385864986,1758069047152,-1454.46,0.00022191,3]
[385864988,1758069047161,-480.0,0.00022191,3]
[385864990,1758069047171,-480.0,0.00022191,3]
[385864992,1758069047179,-611.82,0.00022191,3]
[385864994,1758069047189,-480.0,0.00022191,3]
[385864996,1758069047198,-480.0,0.00022191,3]
[385864998,1758069047207,-480.0,0.00022191,3]
[385865000,1758069047216,-741.69,0.00022191,3]
[385865002,1758069047225,-765.81,0.00022191,3]
[385865004,1758069047235,-1218.62,0.00022191,3]
[385865006,1758069047244,-480.0,0.00022191,3]
[385865008,1758069047253,-661.47,0.00022191,3]
[385865009,1758069047262,-1433.43,0.00022191,3]
[385865011,1758069047271,-480.0,0.00022191,3]
[385865013,1758069047282,-3200.6,0.00022191,3]
[385865015,1758069047291,-3082.28,0.00022191,3]
[385865017,1758069047300,-885.0,0.00022191,3]
[385865019,1758069047311,-832.06,0.00022191,3]
[385865021,1758069047320,-480.0,0.00022191,3]
[385865023,1758069047330,-480.0,0.00022191,3]
[385865025,1758069047339,-480.0,0.00022191,3]
[385865027,1758069047348,-1849.91,0.00022191,3]
[385865029,1758069047357,-819.28,0.00022191,3]
[385865031,1758069047367,-480.0,0.00022191,3]
[385865033,1758069047376,-823.82,0.00022191,3]
[385865035,1758069047385,-480.0,0.00022191,3]
[385865037,1758069047394,-669.94,0.00022191,3]
[385865039,1758069047403,-480.0,0.00022191,3]
[385865041,1758069047413,-480.06,0.00022191,3]
[385865043,1758069047422,-1354.71,0.00022191,3]
[385865045,1758069047432,-480.0,0.00022191,3]
[385865047,1758069047442,-555.73,0.00022191,3]
[385865049,1758069047450,-1124.24,0.00022191,3]
[385865051,1758069047460,-480.0,0.00022191,3]
[385865053,1758069047469,-859.53,0.00022191,3]
[385865055,1758069047478,-480.0,0.00022191,3]
[385865057,1758069047488,-664.16,0.00022191,3]
[385865059,1758069047497,-547.49,0.00022191,3]
[385865061,1758069047506,-2208.88,0.00022191,3]
[385865063,1758069047516,-1824.19,0.00022191,3]
[385865065,1758069047525,-480.0,0.00022191,3]
[385865067,1758069047534,-151.94652694,0.00022191,2]
[385865068,1758069047543,-518.92,0.00022191,3]
[385865070,1758069047552,-480.0,0.00022191,3]
[385865072,1758069047562,-151.0,0.00022191,2]
[385865074,1758069047571,-750.0,0.00022191,2]
[385865076,1758069047580,-567.16,0.00022191,3]
[385865078,1758069047589,-793.97,0.00022191,3]
[385865079,1758069047599,-357.75164448,0.00022191,3]
[385865081,1758069047608,-1025.73,0.00022191,3]
[385865083,1758069047618,-1458.61,0.00022191,3]
[385865085,1758069047627,-480.0,0.00022191,3]
[385865087,1758069047636,-2073.44,0.00022191,3]
[385865089,1758069047646,-3586.0,0.00022191,3]
[385865091,1758069047655,-609.18,0.00022191,3]
[385865093,1758069047665,-853.17,0.00022191,2]
[385865095,1758069047678,-1833.06,0.00022191,3]
[385865097,1758069047688,-17854.28,0.00022191,3]
[385865099,1758069047697,-2000.0,0.00022191,3]
[385865101,1758069047706,-660.89,0.00022191,3]
[385865103,1758069047715,-480.0,0.00022191,3]
[385865105,1758069047724,-480.0,0.00022191,3]
[385865107,1758069047733,-718.86,0.00022191,3]
[385865109,1758069047742,-4307.72,0.00022191,3]
[385865111,1758069047752,-918.08,0.00022191,3]
[385865113,1758069047764,-151.0,0.00022191,2]
[385865115,1758069047774,-677.63,0.00022191,3]
[385865117,1758069047783,-1847.28,0.00022191,3]
[385865119,1758069047793,-480.0,0.00022191,3]
[385865121,1758069047803,-233.10738885,0.00022217,2]
[385865123,1758069047814,-634.0,0.00022354,2]
[385865125,1758069047824,-2157.0,0.00022354,2]
[385865127,1758069047834,-406.828,0.00022354,2]
[385865129,1758069047844,-412.92,0.00022354,2]
[385865131,1758069047854,-569.52054246,0.00022365,2]
[385865133,1758069047867,-150.0,0.00022381,2]
[385865136,1758069047880,-150.0,0.00022381,2]
[385865138,1758069047892,-261.72,0.00022395,2]
[385865140,1758069047905,-210.0,0.00022465,2]
[385865143,1758069047916,-239.0,0.00022465,2]
[385865145,1758069047927,-750.0,0.00022465,2]
[385865147,1758069047938,-151.0,0.00022465,2]
[385865149,1758069047949,-480.0,0.00022465,3]
[385865151,1758069047961,-480.0,0.00022465,3]
[385865154,1758069047972,-719.38,0.00022465,3]
[385865156,1758069047984,-480.0,0.00022465,3]
[385865158,1758069047996,-720.48,0.00022465,3]
[385865160,1758069048007,-480.0,0.00022465,3]
[385865162,1758069048019,-480.0,0.00022465,3]
[385865165,1758069048031,-610.31,0.00022465,3]
[385865167,1758069048045,-606.20743714,0.00022465,3]
[385865169,1758069048057,-700.06,0.00022465,3]
[385865171,1758069048067,-480.0,0.00022465,3]
[385865174,1758069048078,-480.0,0.00022465,3]
[385865176,1758069048090,-909.86,0.00022465,3]
[385865178,1758069048101,-480.0,0.00022465,3]
[385865180,1758069048112,-480.0,0.00022465,3]
[385865182,1758069048124,-480.0,0.00022465,3]
[385865184,1758069048136,-480.0,0.00022465,3]
[385865187,1758069048147,-480.0,0.00022465,3]
[385865189,1758069048159,-480.0,0.00022465,3]
[385865191,1758069048169,-820.83,0.00022465,3]
[385865193,1758069048179,-523.42,0.00022465,3]
[385865195,1758069048190,-259.44563491,0.00022465,3]
[385865335,1758069117532,206.72004391,0.000199,2]
[385865336,1758069299923,206.69639592,0.000199,2]
[385865337,1758069303832,347.8,0.00019,30]
[385865340,1758069484439,206.70021035,0.000199,2]
[385865342,1758069674264,208.8883377,0.000199,2]
[385865349,1758069864213,208.88833758,0.000199,2]
[385865357,1758070063310,206.4305291,0.000199,2]
[385865380,1758070232072,-167.72585857,0.00021614,2]
[385865381,1758070232081,-265.62946839,0.00021614,2]
[385865382,1758070232091,-1200.0,0.00021714,2]
[385865383,1758070232100,-300.0,0.00021714,2]
[385865384,1758070232110,-300.0,0.00021714,2]
[385865385,1758070232119,-843.94169309,0.00021715,2]
[385865386,1758070232128,-500.0,0.00021715,2]
[385865387,1758070232138,-500.0,0.00021715,2]
[385865388,1758070232147,-500.0,0.00021715,2]
[385865389,1758070232156,-427.91518786,0.00021715,2]
[385865390,1758070232165,-261.1278443,0.00021715,2]
[385865392,1758070232175,-335.36431836,0.00021715,2]
[385865393,1758070232184,-500.0,0.00021715,2]
[385865394,1758070232193,-35311.04960814,0.00021716,2]
[385865395,1758070232208,-32720.56703552,0.00021716,2]
[385865396,1758070232218,-167.72585856,0.000218,2]
[385865397,1758070232227,-847.61663983,0.00021901,2]
[385865398,1758070232236,-160.0,0.00021901,2]
[385865399,1758070232245,-160.0,0.00021901,2]
[385865400,1758070232258,-160.0,0.00021901,2]
[385865401,1758070232268,-160.0,0.00021901,2]
[385865402,1758070232277,-160.0,0.00021901,2]
[385865403,1758070232286,-160.0,0.00021901,2]
[385865404,1758070232296,-160.0,0.00021901,2]
[385865405,1758070232305,-160.0,0.00021901,2]
[385865406,1758070232314,-217.86301978,0.00021901,2]
[385865407,1758070232328,-233.29513139,0.00021901,2]
[385865408,1758070232337,-160.0,0.00021901,2]
[385865409,1758070232346,-781.13,0.00021907,3]
[385865410,1758070232355,-480.0,0.00021917,2]
[385865411,1758070232364,-451.24,0.00021917,2]
[385865412,1758070232373,-480.0,0.00021917,2]
[385865413,1758070232383,-480.0,0.00021917,2]
[385865414,1758070232392,-404.63410435,0.00021917,2]
[385865415,1758070232404,-75.36589565,0.00021917,2]
[385865416,1758070232413,-630.42,0.00021917,2]
[385865417,1758070232423,-629.45,0.00021917,2]
[385865418,1758070232432,-480.0,0.00021917,2]
[385865419,1758070232442,-480.0,0.00021917,2]
[385865420,1758070232451,-534.02,0.00021917,2]
[385865421,1758070232460,-440.38,0.00021917,2]
[385865422,1758070232470,-612.55,0.00021917,2]
[385865423,1758070232479,-480.0,0.00021917,2]
[385865424,1758070232488,-796.13,0.00021917,2]
[385865425,1758070232497,-480.0,0.00021917,2]
[385865426,1758070232506,-480.0,0.00021917,2]
[385865427,1758070232516,-480.0,0.00021917,2]
[385865428,1758070232525,-480.0,0.00021917,2]
[385865429,1758070232534,-480.0,0.00021917,2]
[385865430,1758070232543,-480.0,0.00021917,2]
[385865431,1758070232552,-480.0,0.00021917,2]
[385865432,1758070232562,-480.0,0.00021917,2]
[385865433,1758070232571,-787.9,0.00021917,2]
[385865434,1758070232581,-718.22,0.00021917,2]
[385865435,1758070232590,-900.83,0.00021917,2]
[385865436,1758070232599,-480.0,0.00021917,2]
[385865437,1758070232608,-480.0,0.00021917,2]
[385865438,1758070232617,-480.0,0.00021917,2]
[385865439,1758070232626,-871.13,0.00021917,2]
[385865440,1758070232635,-1680.31,0.00021917,2]
[385865441,1758070232645,-560.84,0.00021917,2]
[385865442,1758070232654,-1395.77,0.00021917,2]
[385865443,1758070232663,-480.0,0.00021917,2]
[385865444,1758070232673,-3287.16,0.00021917,2]
[385865445,1758070232682,-111.33330933,0.00021917,2]
[385865464,1758070237955,-500.0,0.00021916,2]
[385865466,1758070237965,-500.0,0.00021916,2]
[385865468,1758070237974,-582.69384419,0.00021916,2]
[385865470,1758070237983,-500.0,0.00021916,2]
[385865472,1758070237992,-1221.92669067,0.00021917,2]
[385865474,1758070238002,-461.97946514,0.00021917,2]
[385866003,1758070243158,-18.02053486,0.00021917,2]
[385866005,1758070243167,-269.79146161,0.00021917,2]
[385866007,1758070243177,-561.13,0.00021917,2]
[385866009,1758070243186,-480.0,0.00021917,2]
[385866011,1758070243195,-480.0,0.00021917,2]
[385866013,1758070243205,-954.43242253,0.00021917,2]
[385866303,1758070246193,208.3149099,0.000199,2]
[385866315,1758070426889,208.27014223,0.000199,2]
[385866317,1758070612233,208.21827703,0.000199,2]
[385866318,1758070792109,208.22411078,0.000199,2]
[385866323,1758070975415,203.89528822,0.000199,2]
[385866324,1758071153210,203.89528821,0.000199,2]
[385866326,1758071362174,202.52805497,0.000199,2]
[385866332,1758071432334,-308.09929999,0.00021716,2]
[385866555,1758071440432,-4834.0,0.00021816,2]
[385866556,1758071440441,-300.0,0.00021816,2]
[385866557,1758071440450,-1200.0,0.00021816,2]
[385866558,1758071440460,-7661.0,0.00021817,2]
[385866566,1758071443492,-481.49380212,0.00021817,2]
[385866572,1758071446311,-2401.00668728,0.00021817,2]
[385866573,1758071446323,-471.53788557,0.00021817,2]
[385866582,1758071548620,213.9541499,0.000199,2]
[385866589,1758071701267,1009.0,0.00028,60]
[385866590,1758071728010,214.89991409,0.000199,2]
[385866591,1758071767670,368.0,0.00028,30]
[385866593,1758071914300,214.89991403,0.000199,2]
[385866594,1758072128155,214.09925557,0.000199,2]
[385866596,1758072294654,155.0,0.00028,30]
[385866597,1758072312647,214.1231278,0.000199,2]
[385866599,1758072338781,167.6616069,0.00028,30]
[385866609,1758072508335,214.90374174,0.000199,2]
[385866648,1758072632819,-201.48790064,0.000215,2]
[385866649,1758072632829,-1080.15885574,0.00021817,2]
[385866651,1758072638550,-134.03873508,0.00021817,2]
[385866652,1758072638561,-252.63087258,0.00021904,2]
[385866653,1758072638571,-160.0,0.00021915,2]
[385866654,1758072638583,-158.6572431,0.00021916,2]
[385866655,1758072638593,-300.0,0.00021916,2]
[385866656,1758072638603,-1200.0,0.00021916,2]
[385866657,1758072638613,-847.61663983,0.00021916,2]
[385866658,1758072638623,-183.80905807,0.00021917,2]
[385866659,1758072638632,-260.64745134,0.00021917,2]
[385866704,1758072640707,-34.6661366,0.00021917,2]
[385866705,1758072640717,-480.0,0.00021917,2]
[385866706,1758072640726,-480.0,0.00021917,2]
[385866707,1758072640736,-480.0,0.00021917,2]
[385866708,1758072640746,-480.0,0.00021917,2]
[385866709,1758072640755,-480.0,0.00021917,2]
[385866710,1758072640764,-480.0,0.00021917,2]
[385866711,1758072640774,-480.0,0.00021917,2]
[385866712,1758072640783,-434.97275208,0.00021917,2]
[385866715,1758072643985,-45.02724792,0.00021917,2]
[385866716,1758072643998,-272.20698698,0.00021917,2]
[385866717,1758072644009,-207.79301302,0.00021917,2]
[385866718,1758072644020,-480.0,0.00021917,2]
[385866719,1758072644029,-232.20698698,0.00021917,2]
[385866797,1758072646673,-195.4538546,0.00021917,2]
[385866799,1758072646682,-259.17310064,0.00021917,2]
[385866800,1758072646694,-220.82689936,0.00021917,2]
[385866801,1758072646702,-480.0,0.00021917,2]
[385866802,1758072646712,-604.15,0.00021917,2]
[385866804,1758072646721,-782.96,0.00021917,2]
[385866806,1758072646730,-480.0,0.00021917,2]
[385866808,1758072646739,-108.08640533,0.00021917,2]
[385866818,1758072672046,917.1,0.0002776,120]
[385866819,1758072689861,204.30424721,0.000199,2]
[385866820,1758072705056,162.0,0.0002115,2]
[385866821,1758072766581,163.38392366,0.00027014,30]
[385866823,1758072781921,3436.065661,0.00030328,120]
[385866824,1758072819062,288.6755881,0.00023288,30]
[385866826,1758072879134,204.26416308,0.000199,2]
[385866827,1758072938877,397.5692853,0.00030328,120]
[385866828,1758073068449,208.31240742,0.000199,2]
[385866829,1758073245974,1000.0,0.00028,30]
[385866830,1758073255539,208.31240736,0.000199,2]
[385866831,1758073346833,1005.0,0.00028,30]
[385866833,1758073444865,208.31240736,0.000199,2]
[385866840,1758073633709,213.09784233,0.000199,2]
[385866841,1758073641827,182.4725632,0.00020887,2]
[385866842,1758073652853,1838.0,0.00030331,50]
[385866850,1758073813594,213.09784233,0.000199,2]
[385866851,1758073814550,236.795991,0.00027726,30]
[385866897,1758073831873,-154.78427327,0.00021716,2]
[385866899,1758073831882,-244.92127607,0.00021816,2]
[385867303,1758073839845,-55.07872393,0.00021816,2]
[385867305,1758073839855,-183.0,0.00021816,2]
[385867307,1758073839864,-1200.0,0.00021816,2]
[385867309,1758073839873,-2001.87810246,0.00021817,2]
[385867311,1758073839883,-2000.0,0.00021817,2]
[385867313,1758073839892,-2000.0,0.00021817,2]
[385867315,1758073839901,-202.9836895,0.0002186,2]
[385867317,1758073839910,-160.0,0.00021896,2]
[385867319,1758073839918,-160.0,0.00021916,2]
[385867321,1758073839927,-160.0,0.00021916,2]
[385867323,1758073839936,-160.0,0.00021917,2]
[385867325,1758073839946,-160.0,0.00021917,2]
[385867327,1758073839955,-217.86301978,0.00021917,2]
[385867329,1758073839964,-233.29513139,0.00021917,2]
[385867331,1758073839973,-847.61663983,0.00021917,2]
[385867333,1758073839983,-481.26521453,0.00021917,2]
[385867335,1758073839992,-480.0,0.00021917,2]
[385867337,1758073840007,-480.0,0.00021917,2]
[385867339,1758073840016,-480.0,0.00021917,2]
[385867341,1758073840025,-480.0,0.00021917,2]
[385867343,1758073840034,-494.22754999,0.00021917,2]
[385867345,1758073840043,-782.07,0.00021917,2]
[385867347,1758073840052,-490.58057287,0.00021917,2]
[385867349,1758073840061,-480.56964151,0.00021917,2]
[385867351,1758073840071,-480.0,0.00021917,2]
[385867353,1758073840080,-613.26,0.00021917,2]
[385867355,1758073840090,-493.79295355,0.00021917,2]
[385867357,1758073840099,-480.0,0.00021917,2]
[385867359,1758073840109,-480.0,0.00021917,2]
[385867361,1758073840117,-624.93,0.00021917,2]
[385867363,1758073840126,-508.38,0.00021917,2]
[385867365,1758073840135,-480.0,0.00021917,2]
[385867367,1758073840144,-495.72821802,0.00021917,2]
[385867369,1758073840153,-588.86,0.00021917,2]
[385867371,1758073840162,-480.0,0.00021917,2]
[385867373,1758073840171,-480.0,0.00021917,2]
[385867376,1758073840183,-480.0,0.00021917,2]
[385867377,1758073840193,-480.0,0.00021917,2]
[385867379,1758073840202,-480.0,0.00021917,2]
[385867382,1758073840211,-889.55,0.00021917,2]
[385867384,1758073840220,-480.0,0.00021917,2]
[385867386,1758073840230,-418.3104029,0.00021917,2]
[385867388,1758073840239,-3198.86,0.00021917,2]
[385867390,1758073840248,-480.0,0.00021917,2]
[385867392,1758073840257,-480.0,0.00021917,2]
[385867394,1758073840267,-688.0,0.00021917,2]
[385867396,1758073840275,-480.0,0.00021917,2]
[385867398,1758073840284,-480.0,0.00021917,2]
[385867400,1758073840293,-480.0,0.00021917,2]
[385867402,1758073840302,-480.0,0.00021917,2]
[385867404,1758073840312,-480.0,0.00021917,2]
[385867406,1758073840321,-480.0,0.00021917,2]
[385867408,1758073840331,-151.0,0.00021917,2]
[385867410,1758073840340,-159.152697,0.00021917,2]
[385867412,1758073840350,-1342.11,0.00021917,2]
[385867414,1758073840359,-836.18,0.00021917,2]
[385867416,1758073840368,-541.26,0.00021917,2]
[385867418,1758073840378,-559.13,0.00021917,2]
[385867420,1758073840394,-1118.8,0.00021917,2]
[385867422,1758073840404,-756.15,0.00021917,2]
[385867424,1758073840413,-151.0,0.00021917,2]
[385867426,1758073840423,-153.69694,0.00021917,2]
[385867428,1758073840432,-500.0,0.00021917,10]
[385867430,1758073840441,-1280.42,0.00021917,2]
[385867432,1758073840450,-500.0,0.00021917,10]
[385867434,1758073840462,-500.0,0.00021917,10]
[385867436,1758073840472,-500.0,0.00021917,10]
[385867438,1758073840481,-431.46281442,0.00021917,10]
[385867440,1758073840490,-151.0,0.00021917,2]
[385867442,1758073840499,-151.0,0.00021917,2]